Cogmind - Beta 13 @@@ ROGUE MODE // 2024.04.13 @ 19:28:42 Player: Baxter Result: Self-destructed Performance ------------- Evolutions (2) 1000 Regions Visited (5) 1000 Robots Destroyed (70) 350 Value Destroyed (1680) 1680 Prototype IDs (2) 40 Alien Tech Used (0) 0 Bonus (191) 191 TOTAL SCORE: 4261 Bonus ------- Follower Combat Kills 211 Friendly Fire -20 Cogmind --------- Core Integrity 331/550 Matter 268/300 Energy 140/140 System Corruption 2% Temperature Cool (96) Movement Core (800) Ox15 Location -8/Materials Parts ------- > --- POWER (1) -------- Light Deuterium Engine > --- PROPULSION (4) --- (None) > --- UTILITY (4) ------ High-capacity Storage Unit Light Armor Plating Hacking Suite > --- WEAPON (2) ------- (None) > --- INVENTORY (20) --- Light Nuclear Core Micro Nuclear Core Carbon-fiber Leg Gravmag System High-capacity Storage Unit Large Matter Pod (150) Structural Scanner Sensor Array Terrain Scanner Seismic Detector Melee Analysis Suite Advanced ECM Suite Light Armor Plating Decoy Drone Bay Heavy Assault Rifle Heavy Assault Rifle Heavy Assault Rifle Advanced Assault Cannon Mace Peak State ------------ > --- POWER ------------ Heavy Ion Engine > --- PROPULSION ------- Aluminum Leg Improved Titanium Leg Armored Wheel Armored Wheel > --- UTILITY ---------- High-capacity Storage Unit Hardened Medium Armor Plating Hacking Suite Hacking Suite > --- WEAPON ----------- Heavy Assault Rifle Heavy Assault Rifle > --- INVENTORY -------- Light Nuclear Core Micro Nuclear Core Carbon-fiber Leg Gravmag System High-capacity Storage Unit Large Matter Pod Structural Scanner Sensor Array Terrain Scanner Seismic Detector Advanced ECM Suite Light Armor Plating Light Armor Plating Decoy Drone Bay Heavy Assault Rifle Heavy Assault Rifle Advanced Assault Cannon Grenade Launcher Mace [Rating: 31] Favorites ----------- Power Ion Engine Engine Ion Engine Power Core Light Nuclear Core Propulsion Aluminum Leg Leg Aluminum Leg Wheel Wheel Utility High-capacity Storage Unit Device Seismic Detector Storage High-capacity Storage Unit Hackware Hacking Suite Protection Light Armor Plating Weapon Heavy Assault Rifle Energy Gun Heavy EM Pulse Gun Ballistic Gun Heavy Assault Rifle Launcher Grenade Launcher Impact Weapon Mace Build | -11 -10 -10 -9 -9 -8 ------- Run | Yrd Mat Min Mat Min Mat Slots Evolved 4 | . . . 2 . 2 Power . | . . . . . . Propulsion 2 | . . . 2 . . Utility 2 | . . . . . 2 Weapon . | . . . . . . Parts Attached 52 | 8 12 5 9 12 6 Power 7 | 1 2 . 1 2 1 Engine 5 | 1 1 . 1 1 1 Core 2 | . 1 . . 1 . Reactor . | . . . . . . Propulsion 15 | 3 4 1 5 2 . Treads . | . . . . . . Leg 9 | 2 2 1 3 1 . Wheel 6 | 1 2 . 2 1 . Hover . | . . . . . . Flight . | . . . . . . Utility 12 | 2 1 2 1 2 4 Device 4 | 1 . 2 . 1 . Storage 3 | 1 1 . 1 . . Processor . | . . . . . . Hackware 2 | . . . . . 2 Protection 3 | . . . . 1 2 Artifact . | . . . . . . Weapon 18 | 2 5 2 2 6 1 Energy Gun 2 | . 2 . . . . Energy Cannon . | . . . . . . Ballistic Gun 11 | 2 2 2 1 4 . Ballistic Cannon . | . . . . . . Launcher 3 | . . . . 2 1 Special Weapon . | . . . . . . Impact Weapon 2 | . 1 . 1 . . Slashing Weapon . | . . . . . . Piercing Weapon . | . . . . . . Special Melee Weapon . | . . . . . . Unidentified Prototypes 2 | . . . 1 1 . Parts Lost 11 | . 2 . . 1 8 Power 1 | . 1 . . . . Propulsion 5 | . . . . 1 4 Utility 3 | . 1 . . . 2 Weapon 2 | . . . . . 2 Highest Loss Streak 4 | . 1 . . 1 4 To Critical Strikes . | . . . . . . Average Slot Usage (%) 96 | . 97 95 100 98 87 Engine 11 | . 9 14 11 10 9 Core 1 | . 3 . . . . Leg 18 | . 15 14 33 25 13 Wheel 13 | . 12 14 11 17 14 Device 9 | . 12 9 11 9 2 Storage 12 | . 14 14 11 11 9 Hackware 1 | . . . . . 13 Energy Gun 3 | . 11 . . . . Ballistic Gun 19 | . 15 28 20 14 15 Launcher 1 | . . . . 4 2 Impact Weapon 1 | . 1 . 1 3 . Naked Turns . | . . . . . . Heaviest Build 65 | 13 52 52 55 57 65 Greatest Support 24 | 20 20 10 12 24 24 Greatest Overweight (x) 5 | 1 5 5 5 4 4 Average Overweight (x) 3 | . 4 5 4 2 2 Largest Inventory Capacity 20 | 8 20 20 20 20 20 Average Capacity 19 | 7 18 20 20 20 20 Most Carried 20 | 4 20 20 20 20 20 Average Carried 17 | 2 15 19 19 19 19 Final Capacity 20 | 8 20 20 20 20 20 Final Carried 20 | 4 20 20 20 20 20 Class Distribution -------------------- 87% | Mutant 7% | Scavenger-Mutant 5% | Hacker-Mutant Dominant Class ---------------- Mutant | -10/Materials Mutant | -10/Mines Mutant | -9/Materials Mutant | -9/Mines Hacker-Mutant | -8/Materials Resources | -11 -10 -10 -9 -9 -8 ----------- Run | Yrd Mat Min Mat Min Mat Matter Collected 1756 | 281 386 122 344 277 346 Remotely . | . . . . . . Salvage Created 2325 | 98 634 234 497 167 695 Parts 157 | 7 47 21 24 7 51 Haulers Intercepted 4 | . 1 . 3 . . Recyclers Shooed 2 | . . . 2 . . Parts Field Recycled . | . . . . . . Retrieved Matter . | . . . . . . Parts Self-Destructed . | . . . . . . Prevented . | . . . . . . Kills | -11 -10 -10 -9 -9 -8 ------- Run | Yrd Mat Min Mat Min Mat Combat Hostiles Destroyed 43 | . 14 2 5 7 15 Melee 1 | . 1 . . . . Guns 31 | . 11 2 5 2 11 AOE 9 | . . . . 5 4 Classes Destroyed 12 | 2 6 1 1 1 1 Worker 4 | . . 2 . 1 1 Builder 5 | . 1 1 . 1 2 Tunneler 7 | 2 . 5 . . . Hauler 4 | . 1 . 3 . . Recycler 3 | 1 . . 2 . . Operator 4 | . 2 . . . 2 Watcher 2 | . 2 . . . . Swarmer 6 | . 3 . . . 3 Grunt 32 | . 11 2 4 5 10 Brawler 2 | . . . . . 2 Sentry 1 | . . . 1 . . Assembled 2 | . . . . 2 . Best Kill Streak 8 | 2 4 3 3 3 8 Combat Bots Only 7 | . 4 2 2 3 7 Max Kills in Single Turn 3 | 1 1 2 1 1 3 Gunslinging 1 | . . . . . 1 Exploded 3 | . . . . 1 3 Melee 1 | . 1 . . . . Uniques/NPCs Destroyed . | . . . . . . Combat | -11 -10 -10 -9 -9 -8 -------- Run | Yrd Mat Min Mat Min Mat Hostile Shots Fired 257 | . 60 7 46 17 127 Missed 64 | . 14 1 12 5 32 Damage Taken 2498 | . 494 96 387 217 1304 Core 411 | . 103 . 46 43 219 Absorbed by Shields . | . . . . . . Core Remaining (%) 78 | 100 . 58 . 77 . Volleys Fired 209 | 15 62 12 44 18 58 Largest 2 | 2 2 2 2 2 2 Hottest 90 | 40 90 46 46 46 53 Shots Fired 401 | 30 124 24 88 25 110 Gun 386 | 30 124 24 88 14 106 Cannon . | . . . . . . Launcher 15 | . . . . 11 4 Special . | . . . . . . Kinetic 354 | 30 92 24 88 14 106 Thermal . | . . . . . . Explosive 15 | . . . . 11 4 Electromagnetic 32 | . 32 . . . . Robot Hit Streak 10 | 4 10 9 9 9 6 Robot Miss Streak 5 | 2 4 1 4 2 5 Penetration Max . | . . . . . . Secondary Targets 6 | . 1 . 1 . 4 Max Gunslinging Chain 1 | . 1 . 1 . 1 Shots Hit Robots 246 | 18 76 17 55 16 64 Core Hits 130 | 6 32 13 18 13 48 Critical Kills 1 | . 1 . . . . Critical Parts Destroyed 1 | . 1 . . . . Critical Strikes 2 | . 2 . . . . Smash 2 | . 2 . . . . Melee Attacks 13 | . 12 . 1 . . Impact 13 | . 12 . 1 . . Slashing . | . . . . . . Piercing . | . . . . . . Sneak Attacks . | . . . . . . Combat Hostiles . | . . . . . . Follow-up Attacks . | . . . . . . Damage Inflicted 4414 | 149 988 263 829 675 1510 Guns 3128 | 149 757 263 829 152 978 Cannons . | . . . . . . Explosions 1115 | . 65 . . 523 527 Melee 166 | . 166 . . . . Ramming 5 | . . . . . 5 Kinetic 2795 | 149 424 263 829 152 978 Thermal 65 | . 65 . . . . Explosive 1050 | . . . . 523 527 Electromagnetic 333 | . 333 . . . . Impact 166 | . 166 . . . . Slashing . | . . . . . . Piercing . | . . . . . . Highest Corruption 2 | . . . . . 2 Average Corruption 1 | . . . . . 1 Corruption Purged . | . . . . . . Corruption Blocked . | . . . . . . Effects 4 | . . . . . 4 Energy Discharges 1 | . . . . . 1 Data Loss (minor) 1 | . . . . . 1 Weapon Failures 2 | . . . . . 2 Overload Shots . | . . . . . . Overflow Damage 47 | . 45 . . 2 . Projectiles . | . . . . . . Explosions 2 | . . . . 2 . Melee 45 | . 45 . . . . Knockbacks 1 | . 1 . . . . Impact 1 | . 1 . . . . Kinetic . | . . . . . . Secondary . | . . . . . . Self-Inflicted Damage 74 | . . . . 56 18 Shots 3 | . . . . 2 1 Rammed 1 | . . . . . 1 Targets Rammed 1 | . . . . . 1 Kicked . | . . . . . . Crushed . | . . . . . . Highest Temperature 249 | . 249 4 . 17 78 Average Temperature 31 | . 42 4 . 8 12 Received Heat Transfer 1122 | . 204 54 123 111 630 Siege Activations . | . . . . . . Robots Corrupted . | . . . . . . Combat Hostiles . | . . . . . . Parts Fried 1 | . 1 . . . . Impact Corruptions 4 | . 4 . . . . Robots Melted . | . . . . . . Combat Hostiles . | . . . . . . Parts Melted . | . . . . . . Heat Transferred 50 | . 50 . . . . Parts Sabotaged . | . . . . . . Parts Stolen . | . . . . . . Parts Stripped . | . . . . . . Power Chain Reactions 1 | . 1 . . . . Alert | -11 -10 -10 -9 -9 -8 ------- Run | Yrd Mat Min Mat Min Mat Peak Influence 391 | 15 189 91 317 149 391 Initial 64 | . 9 26 . 64 57 Average 89 | 4 76 34 147 108 201 Maximum Alert Level 1 | . . . 1 . 1 Low Security (%) 91 | 100 100 100 65 100 56 Level 1 8 | . . . 34 . 43 Level 2 . | . . . . . . Level 3 . | . . . . . . Level 4 . | . . . . . . Level 5 . | . . . . . . High Security . | . . . . . . Max Security . | . . . . . . Squads Dispatched 7 | . 2 . 2 . 3 Investigation 2 | . . . 1 . 1 Extermination . | . . . . . . Reinforcement 5 | . 2 . 1 . 2 Assault . | . . . . . . Garrison . | . . . . . . Intercept . | . . . . . . Searches Triggered . | . . . . . . Construction Impeded 2 | . . . 1 . 1 Haulers Reinforced . | . . . . . . Active Scanning Responses . | . . . . . . Cargo Convoy Interrupts . | . . . . . . Stealth | -11 -10 -10 -9 -9 -8 --------- Run | Yrd Mat Min Mat Min Mat Distress Signals 7 | . . . 1 . 6 Communications Jammed . | . . . . . . Distress Signals . | . . . . . . Times Spotted 87 | . 25 4 16 9 33 Peak Tracking Total 9 | . 3 2 7 3 9 Tactical Retreats 2 | . 1 . . 1 . Traps | -11 -10 -10 -9 -9 -8 ------- Run | Yrd Mat Min Mat Min Mat Traps Triggered 2 | . . . 1 . 1 Indirectly . | . . . . . . Trap Hack Attempts . | . . . . . . Triggered . | . . . . . . Disarmed . | . . . . . . Reprogrammed . | . . . . . . Reused . | . . . . . . Traps Extracted . | . . . . . . Installed . | . . . . . . Triggered . | . . . . . . Machines | -11 -10 -10 -9 -9 -8 ---------- Run | Yrd Mat Min Mat Min Mat Machines Disabled 3 | . . . . 2 1 Max in Single Turn 2 | . . . . 2 1 Machines Repaired . | . . . . . . Machines Dismantled . | . . . . . . Machines Sabotaged . | . . . . . . Overloaded Fab Kills . | . . . . . . Hacking | -11 -10 -10 -9 -9 -8 --------- Run | Yrd Mat Min Mat Min Mat Machines Accessed 12 | . 5 1 2 1 3 Terminals 10 | . 5 . 2 . 3 Fabricators . | . . . . . . Repair Stations . | . . . . . . Recycling Units . | . . . . . . Scanalyzers . | . . . . . . Garrison Access . | . . . . . . Total Hacks 33 | . 19 1 4 1 8 Successful 17 | . 8 1 3 1 4 Failed 16 | . 11 . 1 . 4 Catastrophic 3 | . . . 1 . 2 Database Lockouts . | . . . . . . Manual 26 | . 15 . 4 . 7 Terminals 31 | . 19 . 4 . 8 Fabricators . | . . . . . . Repair Stations . | . . . . . . Recycling Units . | . . . . . . Scanalyzers . | . . . . . . Garrison Access . | . . . . . . Terminal Hacks 8 | . 4 1 1 1 1 Robot Analysis 4 | . 3 . . . 1 Open Door 2 | . . 1 . 1 . Alert Level 1 | . . . 1 . . Zone Layout 1 | . 1 . . . . Fabricator Hacks . | . . . . . . Repair Station Hacks . | . . . . . . Recycling Unit Hacks . | . . . . . . Scanalyzer . | . . . . . . Garrison Access Hacks . | . . . . . . Unauthorized Hacks 9 | . 4 . 2 . 3 Terminals 9 | . 4 . 2 . 3 Botnet 8 | . 3 . 2 . 3 Operators 1 | . 1 . . . . Fabricators . | . . . . . . Repair Stations . | . . . . . . Recycling Units . | . . . . . . Scanalyzers . | . . . . . . Garrison Access . | . . . . . . Data Cores Recovered 1 | . . . . . 1 Used 1 | . . . . . 1 Hacking Detections 10 | . 5 . 2 . 3 Full Trace Events 1 | . . . . . 1 Feedback Events . | . . . . . . Feedback Blocked . | . . . . . . Robot Schematics Acquired . | . . . . . . Robots Built . | . . . . . . Authchips . | . . . . . . Time . | . . . . . . Total Robot Build Rating . | . . . . . . Part Schematics Acquired . | . . . . . . Parts Built . | . . . . . . Authchips . | . . . . . . Time . | . . . . . . Total Part Build Rating . | . . . . . . Parts Repaired . | . . . . . . Time . | . . . . . . Parts Recycled . | . . . . . . Recycled Matter . | . . . . . . Retrieved Matter . | . . . . . . Retrieved Components . | . . . . . . Parts Scanalyzed . | . . . . . . Part Schematics Acquired . | . . . . . . Parts Damaged . | . . . . . . Bothacking | -11 -10 -10 -9 -9 -8 ------------ Run | Yrd Mat Min Mat Min Mat Used RIF Installer . | . . . . . . Robots Hacked . | . . . . . . Non-combat . | . . . . . . Combat . | . . . . . . Robot Hacks Applied . | . . . . . . Relay Couplers Released . | . . . . . . Fabnet Peak Effective % . | . . . . . . Robots Rewired . | . . . . . . Allies Hacked . | . . . . . . Hacks Repelled . | . . . . . . Allies | -11 -10 -10 -9 -9 -8 -------- Run | Yrd Mat Min Mat Min Mat Total Allies 2 | . . 2 . . . Largest Group 2 | . . 2 1 . . Highest-Rated Group 45 | . . 45 31 . . Highest-Rated Ally 31 | . . 31 31 . . Total Orders . | . . . . . . Ally Attacks 30 | . . 8 22 . . Total Damage 357 | . . 108 249 . . Kills 7 | . . 2 5 . . Allies Corrupted . | . . . . . . Allies Melted . | . . . . . . Intel | -11 -10 -10 -9 -9 -8 ------- Run | Yrd Mat Min Mat Min Mat Robot Analysis Total 4 | . 3 . . . 1 Derelict Logs Recovered 5 | . . 3 . 2 . Drone Launches . | . . . . . . Drone Recoveries . | . . . . . . Exploration | -11 -10 -10 -9 -9 -8 ------------- Run | Yrd Mat Min Mat Min Mat Turns Passed 4518 | 139 1362 1261 545 762 449 Spaces Moved 2508 | 73 720 776 250 504 185 Core 1 | 1 . . . . . Treads . | . . . . . . Legs 165 | 66 99 . . . . Wheels 2342 | 6 621 776 250 504 185 Hover . | . . . . . . Flight . | . . . . . . Fastest Speed 50 | 50 120 155 150 120 120 Average Speed 146 | 116 150 155 153 132 133 Slowest Speed 470 | 190 470 155 155 150 150 Overloaded Moves . | . . . . . . Propulsion Burnouts . | . . . . . . Robots Hopped . | . . . . . . Cave-ins Triggered . | . . . . . . Exploration Rate (%) 56 | 5 86 97 29 97 26 Regions Visited 5 Branch Regions 2 Pre-discovered Areas 2 | . . 1 . 1 . Known Exits Taken 2 | . . . 1 1 . Unknown Exits Taken 3 | 1 1 1 . . . Scrap Searched 4 | . . 1 . 3 . Spaces Dug 11 | . 2 . 1 8 . Terrain Destroyed 95 | . 10 . 1 56 28 Melee 3 | . 2 . 1 . . Projectile . | . . . . . . AOE 92 | . 8 . . 56 28 Terrain Rammed . | . . . . . . Walls Destroyed . | . . . . . . Machines Disabled . | . . . . . . Actions | -11 -10 -10 -9 -9 -8 --------- Run | Yrd Mat Min Mat Min Mat Total 2952 | 99 875 811 325 569 273 Wait 109 | . 43 12 5 29 20 Move 2503 | 72 719 775 249 503 185 Hop . | . . . . . . Pick Up 37 | 3 19 3 7 3 2 Fast Attach 12 | 8 . . 1 2 1 Attach 6 | . 1 1 2 . 2 Detach 1 | 1 . . . . . Swap 34 | . 11 4 6 10 3 Drop 27 | . 8 4 10 4 1 Fire 209 | 15 62 12 44 18 58 Melee 13 | . 12 . 1 . . Ram 1 | . . . . . 1 Kick . | . . . . . . Crush . | . . . . . . Escape Stasis . | . . . . . . Rewire . | . . . . . . Trap . | . . . . . . Miscellaneous . | . . . . . . Route ------- -11/Scrapyard -10/Materials (discovered 4 exits: *Mat x3 / *Min) -10/Mines (discovered 3 exits: *Mat x2 / [*Exi]) -9/Materials (discovered 3 exits: *Mat / *Min x2) -9/Mines (discovered 2 exits: *Mat x2) -8/Materials History --------- Turn | Location | Event 12 | -11/Scrapyard | Discovered new exit (range 16) 140 | -11/Scrapyard | Entered Materials 243 | -10/Materials | Discovered new exit (range 15) 301 | -10/Materials | Discovered new exit (range 12) 305 | -10/Materials | Build established: Mutant 948 | -10/Materials | Discovered new exit (range 5) 1115 | -10/Materials | Discovered new exit (range 16) 1502 | -10/Materials | Entered Mines 1553 | -10/Mines | Discovered new exit (range 5) 1658 | -10/Mines | Discovered new exit (range 16) 1712 | -10/Mines | Deemed a non-threat by the Exiles lab entrance 1712 | -10/Mines | Discovered new exit (range 5) 1961 | -10/Mines | Learned 8 Materials zone layouts 2027 | -10/Mines | Learned 2 Materials zone layouts 2201 | -10/Mines | Found the Drone Emporium 2209 | -10/Mines | Learned location of Zion (-6) 2214 | -10/Mines | Found Prototype Device 2763 | -10/Mines | Entered Materials 2763 | -9/Materials | Accompanied by 1 ally 2763 | -9/Materials | Evolved 2 slots: Propulsion x2 2764 | -9/Materials | Identified exit to Mines 2764 | -9/Materials | Identified exit to Materials 2768 | -9/Materials | Led the pair of lost Derelicts to an unsafe place 3308 | -9/Materials | Entered Mines 3313 | -9/Mines | Learned Materials non-interactive machine intel 3428 | -9/Mines | Assembled infested the area 3491 | -9/Mines | Discovered exit to Materials (range 5) 3514 | -9/Mines | Discovered exit to Materials (range 11) 3782 | -9/Mines | Met a Derelict who couldn't figure out how to use a Trap Extractor 4070 | -9/Mines | Entered Materials 4070 | -8/Materials | Evolved 2 slots: Utility x2 4071 | -8/Materials | Loaded intel: 39 non-interactive machine locations 4390 | -8/Materials | Lost 3 parts (1n2u) 4399 | -8/Materials | Destroyed 7 combat bots 4519 | -8/Materials | Self-destructed Last Messages --------------- 04416_ U-05 Engineer lays Concrete. 04417_ Connecting with Terminal... >>Trojan(Botnet) Trojan loaded successfully. Testing... Terminal linked with 2 systems. Awaiting botnet instructions. 04417_ ALERT: Suspicious activity at Terminal M010. Dispatching Investigation squad. 04429_ Acquired Melee Analysis Suite. 04460_ System corrupted: Energy discharge (-89). 04505_ Dropped Hvy. Ion Engine. 04511_ Matter Filter disabled. 04513_ The unstable cave ceiling collapses. 04517_ Imp. Titanium Leg destroyed. 04517_ Hvy. Assault Rifle destroyed. 04517_ Critical hit (Burn: +37). 04517_ G-50 Soldier destroyed. 04518_ Grenade Launcher destroyed. 04519_ Arm. Wheel destroyed. Map ----- +----------------------------------------------------+ | #????????????????????????????????????? | | ##???????????????????????????????????? | | ????????????????????????????????????? | | ??????????????#???????????????????????? | | ############# ###?????????????????????? | | ! ????????????????????? | | %! [ ????H???????????????? | | *| ????????????????????? | | """ ###########???????????????????????? | | """ #?????????????????????????????????? | | """ #?????????????????????????????????? | | *[ [ #?????????????????????????????????? | | = =*!#?????????????????????????????????? | | """ #?????????????????????????????????? | | """=/#?????????????????????????????????? | | """%[#?????????????????????????????????? | | ! #?????????????????????????????????? | | #?????????????????????????????????? | | """ #?????????????????????????????????? | | """ ########????###???????????????????? | | """ # #????+ ???????????????????? | | = #????# #???????????????????? | | ![! #????# ########????????????? | | ##!%*+ ! #????# # #####????????? | | #%=%# #????# # * !#????????? | | #!%!# #????# # g @ #????????? | | #==[########????#a g """ #????????? | | # ########????# % """" #????????? | | # # ######+# = %"""" #????????? | | ?# # T # gg """"" #????????? | | ?# + # g """" #????????? | | ?# # # g #????????? | | ?# # # """ # # ###+#????????? | | ?# #####+## """ + g #????????????? | | ?# # """ u#### #????????????? | | ?# + #??# #????????????? | | ?# # """ #??# #????????????? | | ?######## # """ #??# #????????????? | | ????????# # """ ! #??# ????????????? | | ????????# # #??# ???????????? | | ????????# #########??# ???????????? | | ???????? ?????????? ??????????? | | ??????? ?????????? ?????????? | | ?????? ?????????? ?????????? | | ??????##+####?????????? ????????? | | ??????????????????????? ????????? | | ?"""??????????????????? !!! ????????? | | ?"""??????????????????? !!!??????????? | | ?"""??????????????????? !????????????? | | ???????????????????????????????????????? | +----------------------------------------------------+ Best States ------------- Heat Dissipation 31 Energy Generation 15 Energy Capacity 280 Matter Stores 300 Matter Capacity 300 Sight Range 16 Robot Scan Range 14 Terrain Scan Density 10 Armor Coverage 375 Evasion (%) 55 Offensive Hacking 20 Item Schematics ----------------- None Robot Schematics ------------------ None Fabricated ------------ Nothing Alien Tech Used ----------------- None Achievements -------------- None Challenges ------------ None Game ------ Seed AngularReactionMapper Manual? 0 Play Time 00:25:21 Cumulative 94.0 hours Start 2024.04.13 @ 19:03:06 End 2024.04.13 @ 19:28:42 Sessions 1 Manual Loads 0 Difficulty Rogue Special Mode None Game No. 96 Rogue 96 Adventurer 0 Explorer 0 Win Type - Total 2 Types 1/0/0/1/0/0/0/0/0 Lore% 42 Gallery% 51 Achievement% 39 Wizard Run 0 Options --------- Layout 1 ASCII 0 Keyboard 0 Movement Numpad Keybinds 0 Fullscreen 2 Font 24/X11 Map View 50x35 Zoom Use 0% Tactical HUD 1 Map Filters NONE Filters NONE Steam 0 RUN: 5231e88a-8c87-4933-88ec-b73d7d08d332